bitfinex/quotes_BTCUSD_20250403
["timestamp","ask_amount","ask_price","bid_price","bid_amount"]
[1743671183522,0.26586385,83692.0,83691.0,0.000337]
[1743671185743,0.60586385,83692.0,83691.0,0.000337]
[1743671186697,0.60580262,83692.0,83691.0,0.000337]
[1743671186909,0.72255822,83692.0,83691.0,0.000337]
[1743671187078,0.77055822,83692.0,83691.0,0.000337]
[1743671187302,0.90631822,83692.0,83691.0,0.000337]
[1743671195725,0.590922,83691.0,83690.0,2.4e-07]
[1743671195949,0.89717247,83691.0,83690.0,2.4e-07]
[1743671196203,0.89717247,83691.0,83667.0,0.01195176]
[1743671196204,0.590992,83668.0,83667.0,0.01195176]
[1743671196459,0.8433076,83668.0,83667.0,0.01195176]
[1743671196847,0.85637266,83668.0,83667.0,0.01195176]
[1743671197048,0.89543379,83668.0,83667.0,7.6e-07]
[1743671197247,1.02001667,83668.0,83667.0,7.6e-07]
[1743671197477,0.591006,83663.0,83662.0,9.6e-07]
[1743671197680,0.591006,83663.0,83624.0,0.239165]
[1743671197681,0.636945,83650.0,83649.0,8e-07]
[1743671197888,0.8894606,83650.0,83649.0,8e-07]
[1743671198035,0.94158679,83650.0,83649.0,8e-07]
[1743671199926,0.85662566,83650.0,83649.0,8e-07]
[1743671200100,0.85662566,83650.0,83649.0,0.0010008]
[1743671200305,1.13644479,83650.0,83649.0,0.0010008]
[1743671201388,1.09363079,83650.0,83649.0,0.0010008]
[1743671201630,1.06225579,83650.0,83649.0,0.0010008]
[1743671201833,0.89568679,83650.0,83649.0,0.0010008]
[1743671202089,0.85662566,83650.0,83649.0,0.0010008]
[1743671202461,1.0124308,83650.0,83649.0,0.0010008]
[1743671204841,0.97328967,83650.0,83649.0,0.0010008]
[1743671205177,0.85654566,83650.0,83649.0,0.0010008]
[1743671206146,0.89560679,83650.0,83649.0,0.0010008]
[1743671206835,0.85654566,83650.0,83649.0,0.0010008]
[1743671207278,1.88946566,83650.0,83649.0,0.0010008]
[1743671207432,1.92852679,83650.0,83649.0,0.0010008]
[1743671208482,2.0452708,83650.0,83649.0,0.0010008]
[1743671210486,1.88946566,83650.0,83649.0,0.0010008]
[1743671212540,1.75378566,83650.0,83649.0,0.0010008]
[1743671212700,1.88918566,83650.0,83649.0,0.0010008]
[1743671214309,1.75378566,83650.0,83649.0,0.0010008]
[1743671214545,1.63703006,83650.0,83649.0,0.0010008]
[1743671215735,1.63703006,83650.0,83649.0,0.0482008]
[1743671216665,1.29703006,83650.0,83649.0,0.0482008]
[1743671216798,1.63703006,83650.0,83649.0,0.0927008]
[1743671217200,1.63703006,83650.0,83649.0,0.0937008]
[1743671218285,1.63703006,83650.0,83649.0,0.0010008]
[1743671219325,1.75412306,83650.0,83649.0,0.0010008]
[1743671219538,0.251069,83642.0,83641.0,0.04814836]
[1743671219932,0.26358835,83642.0,83641.0,0.04814836]
[1743671220853,0.26358835,83642.0,83641.0,0.04914836]
[1743671220967,0.26358835,83642.0,83641.0,0.00374836]
[1743671222008,0.60358835,83642.0,83641.0,0.00374836]
[1743671223121,0.60358835,83642.0,83641.0,0.00274836]
[1743671223350,0.60358835,83642.0,83641.0,0.00374836]
[1743671223705,0.60358835,83642.0,83641.0,0.00274836]
[1743671224053,0.60358835,83642.0,83641.0,0.00374836]
[1743671224849,0.61550699,83642.0,83641.0,0.00374836]
[1743671226754,0.61550699,83642.0,83641.0,0.00274836]
[1743671227160,0.61550699,83642.0,83641.0,0.10054836]
[1743671227372,0.01251935,83642.0,83641.0,0.35162036]
[1743671227572,0.239102,83647.0,83641.0,0.35162036]
[1743671227772,0.239102,83647.0,83645.0,0.239105]
[1743671227966,0.239097,83648.0,83647.0,0.0484]
[1743671228166,1.0332574,83650.0,83649.0,0.297948]
[1743671228400,1.0332574,83650.0,83649.0,0.334394]
[1743671228401,0.0003374,83650.0,83649.0,0.334394]
[1743671228612,0.239034,83670.0,83665.0,0.0971]
[1743671228809,0.250997,83666.0,83665.0,0.0971]
[1743671228990,0.590997,83666.0,83665.0,0.0971]
[1743671229595,0.011951,83670.0,83665.0,0.109052]
[1743671229811,0.01195,83678.0,83670.0,0.239032]
[1743671229980,0.01195,83680.0,83676.0,0.286215]
[1743671230177,0.238989,83686.0,83683.0,0.238995]
[1743671230366,0.238985,83687.0,83683.0,0.250944]
[1743671230574,0.238985,83687.0,83682.0,0.01195]
[1743671230575,0.011948,83692.0,83685.0,0.011949]
[1743671230793,0.011946,83707.0,83697.0,0.011947]
[1743671231000,1.03296,83710.0,83696.0,0.238958]
[1743671231001,0.011945,83714.0,83702.0,0.0471]
[1743671231202,0.011945,83714.0,83700.0,0.011947]
[1743671231203,0.011943,83728.0,83721.0,0.011944]
[1743671231457,0.11563681,83737.0,83712.0,0.0966]
[1743671231458,0.238906,83715.0,83712.0,0.0966]
[1743671231626,0.238909,83714.0,83712.0,0.0966]
[1743671231779,0.011945,83713.0,83712.0,0.0966]
[1743671233090,0.011945,83713.0,83712.0,0.0976]
[1743671233741,0.02367326,83713.0,83712.0,0.0976]
[1743671236262,0.01172826,83713.0,83712.0,0.0976]
[1743671236465,0.01172826,83713.0,83712.0,0.109545]
[1743671236778,0.238898,83718.0,83713.0,0.238911]
[1743671238339,0.238904,83716.0,83712.0,0.0976]
[1743671238595,0.238907,83715.0,83712.0,0.0966]
[1743671238786,0.250849,83716.0,83712.0,0.335514]
[1743671238988,0.250849,83716.0,83713.0,0.001]
[1743671239752,0.011945,83717.0,83713.0,0.23891]
[1743671239964,0.011944,83720.0,83715.0,0.011945]
[1743671240163,0.0161115,83729.0,83722.0,0.011944]
[1743671240553,0.0041685,83729.0,83722.0,0.01433282]
[1743671240753,0.23887,83728.0,83722.0,0.011944]
[1743671241084,0.0041685,83729.0,83722.0,0.1286996]
[1743671241900,0.0041685,83729.0,83728.0,0.250811]
[1743671242086,0.0041685,83729.0,83728.0,0.3675666]
[1743671242269,0.0041685,83729.0,83728.0,0.4148666]
[1743671243121,0.0041685,83729.0,83728.0,0.0473]
[1743671243295,0.0041685,83729.0,83728.0,0.195363]
[1743671243547,0.0163094,83729.0,83728.0,0.195363]
[1743671243727,0.0041685,83729.0,83728.0,0.195363]
[1743671243955,0.0163094,83729.0,83728.0,0.18342]
[1743671244158,0.00441101,83729.0,83728.0,0.0473]
[1743671244358,0.01635401,83729.0,83728.0,0.0473]
[1743671244685,0.01629123,83729.0,83728.0,0.0473]
[1743671244895,0.011944,83723.0,83722.0,0.0451]
[1743671245120,0.250826,83723.0,83722.0,0.0451]
[1743671245329,0.25105425,83723.0,83722.0,0.0451]
[1743671246142,0.25105425,83723.0,83722.0,0.0461]
[1743671248787,0.2629669,83723.0,83722.0,0.0461]
[1743671249865,0.2629669,83723.0,83722.0,0.001]
[1743671250322,0.26284844,83723.0,83722.0,0.001]
[1743671254400,0.26301714,83723.0,83722.0,0.001]
[1743671262138,0.238908,83714.0,83713.0,0.0484]
[1743671262929,0.23904634,83714.0,83713.0,0.0484]
[1743671263569,0.23904634,83714.0,83713.0,0.0494]
[1743671263731,0.25100497,83714.0,83713.0,0.0494]
[1743671263973,0.01209697,83714.0,83713.0,0.0494]
[1743671264237,0.01209697,83714.0,83713.0,0.300256]
[1743671267277,0.01209697,83714.0,83713.0,0.0494]
[1743671268062,0.26294997,83714.0,83713.0,0.001337]
[1743671273233,0.25100497,83714.0,83713.0,0.001337]
[1743671273433,0.26294997,83714.0,83713.0,0.001337]
[1743671280161,0.26294997,83714.0,83713.0,0.001337]
[1743671282794,0.01209697,83714.0,83713.0,0.001337]
[1743671282977,0.25100497,83714.0,83713.0,0.001337]
[1743671283203,0.26294997,83714.0,83713.0,0.001337]
[1743671284258,0.01209697,83714.0,83713.0,0.300493]
[1743671284587,0.238903,83716.0,83714.0,0.238908]
[1743671285026,0.238903,83716.0,83713.0,0.288548]
[1743671285827,0.238903,83716.0,83714.0,0.00746555]
[1743671286206,0.238903,83716.0,83714.0,0.00846555]
[1743671286409,0.238903,83716.0,83714.0,0.00746555]
[1743671286728,0.238903,83716.0,83715.0,0.00746555]
[1743671287257,0.0001685,83724.0,83722.0,0.250829]
[1743671287660,0.0001685,83724.0,83722.0,0.238885]
[1743671287884,0.2390507,83723.0,83721.0,0.0494]
[1743671288087,0.2390507,83723.0,83717.0,0.238897]
[1743671288088,0.2390537,83723.0,83717.0,0.238897]
[1743671288229,0.00013691,83722.0,83718.0,0.238894]
[1743671288430,0.23902291,83722.0,83719.0,0.238891]
[1743671288635,0.00013691,83722.0,83720.0,0.238891]
[1743671289036,0.00013691,83722.0,83721.0,0.238888]
[1743671289246,0.00013691,83722.0,83720.0,0.238891]
[1743671289487,0.23902191,83722.0,83720.0,0.238891]
[1743671289706,0.250833,83721.0,83719.0,0.001]
[1743671289911,0.00014548,83720.0,83719.0,0.239894]
[1743671290116,0.23889,83721.0,83718.0,0.238894]
[1743671290371,0.00014833,83720.0,83718.0,0.238894]
[1743671290962,0.00014833,83720.0,83719.0,0.001]
[1743671291566,0.00014833,83720.0,83719.0,0.00846508]
[1743671292180,0.238888,83721.0,83719.0,0.24635908]
[1743671292524,0.00014833,83720.0,83719.0,0.24635908]
[1743671292881,0.00014833,83720.0,83719.0,0.00746508]
[1743671293084,0.00014833,83720.0,83719.0,0.00846508]
[1743671293686,0.01194916,83720.0,83719.0,0.00846508]
[1743671294406,0.01194916,83720.0,83719.0,0.24735908]
[1743671294592,0.01194916,83720.0,83719.0,0.25930308]
[1743671294797,0.0001687,83723.0,83722.0,0.238885]
[1743671295207,0.0001687,83723.0,83722.0,0.250829]
[1743671296425,0.0001687,83723.0,83722.0,0.251829]
[1743671296622,0.0001687,83723.0,83722.0,0.25929408]
[1743671297017,0.00032274,83723.0,83722.0,0.25929408]
[1743671298078,0.0001687,83723.0,83722.0,0.25929408]
[1743671299047,0.0001687,83723.0,83722.0,0.00846508]
[1743671299277,0.26294387,83723.0,83722.0,0.00846508]
[1743671300993,0.60294387,83723.0,83722.0,0.00846508]
[1743671302457,0.60294387,83723.0,83722.0,0.001]
[1743671303979,0.60294387,83723.0,83722.0,0.001337]
[1743671306144,0.59099987,83723.0,83722.0,0.001337]
[1743671306374,0.60294387,83723.0,83722.0,0.001337]
[1743671306718,0.60294387,83723.0,83722.0,0.00880208]
[1743671310687,0.35211787,83723.0,83722.0,0.00880208]
[1743671310851,0.60294387,83723.0,83722.0,0.00880208]
[1743671311619,0.35211787,83723.0,83722.0,0.00880208]
[1743671311901,0.01211787,83723.0,83722.0,0.24768708]
[1743671312059,0.01211787,83723.0,83722.0,0.25963108]
[1743671313702,0.01211787,83723.0,83722.0,0.00880208]
[1743671314843,0.25099987,83723.0,83722.0,0.00880208]
[1743671316389,0.01211787,83723.0,83722.0,0.00880208]
[1743671316638,0.26294387,83723.0,83722.0,0.00880208]
[1743671317900,0.01211787,83723.0,83722.0,0.24768708]
[1743671318408,0.01211787,83723.0,83722.0,0.00880208]
[1743671318594,0.25099987,83723.0,83722.0,0.00880208]
[1743671319254,0.26294387,83723.0,83722.0,0.00880208]
[1743671319423,0.26294387,83723.0,83722.0,0.46888668]
[1743671319424,0.01211787,83723.0,83722.0,0.46888668]
[1743671319622,0.01211787,83723.0,83722.0,0.60404668]
[1743671319956,0.0001687,83723.0,83722.0,0.60404668]
[1743671320683,0.0001687,83723.0,83722.0,0.61858753]
[1743671321104,0.0001687,83723.0,83722.0,0.61758753]
[1743671321314,0.0001687,83723.0,83722.0,0.46788668]
[1743671324894,0.0001687,83723.0,83722.0,0.48242753]
[1743671325075,2e-07,83724.0,83723.0,0.301526]
[1743671325422,2e-07,83724.0,83723.0,0.48092245]
[1743671326683,2e-07,83724.0,83723.0,0.5003284]
[1743671328576,2e-07,83724.0,83723.0,0.6364884]
[1743671330651,2e-07,83724.0,83723.0,0.6364084]
[1743671330996,2e-07,83724.0,83723.0,0.6314084]
[1743671331163,2e-07,83724.0,83723.0,0.6364084]
[1743671338120,2e-07,83724.0,83723.0,0.5003284]
[1743671338322,2e-07,83724.0,83723.0,0.6360084]
[1743671338459,2e-07,83724.0,83723.0,0.6310084]
[1743671338869,2e-07,83724.0,83723.0,0.4953284]
[1743671339074,2e-07,83724.0,83723.0,0.6309684]
[1743671339406,2e-07,83724.0,83723.0,0.4953284]
[1743671340039,2e-07,83724.0,83723.0,0.48112455]
[1743671341297,2e-07,83724.0,83723.0,0.4956654]
[1743671341774,2e-07,83724.0,83723.0,0.48112455]
[1743671343335,2e-07,83724.0,83723.0,0.4956654]
[1743671343560,2e-07,83724.0,83723.0,0.5006654]
[1743671346156,0.28539,83756.0,83728.0,0.250811]
[1743671346400,0.34,83754.0,83728.0,0.38210745]
[1743671346641,0.34,83754.0,83728.0,0.43020745]
[1743671347332,0.623786,83757.0,83728.0,0.43020745]
[1743671347544,0.34,83754.0,83728.0,0.43020745]
[1743671348156,0.34,83754.0,83728.0,0.4496134]
[1743671348585,5e-07,83729.0,83728.0,0.46355163]
[1743671349148,5e-07,83729.0,83728.0,0.51275163]
[1743671349617,1e-06,83734.0,83733.0,0.670496]
[1743671349851,1e-06,83734.0,83733.0,0.91227245]
[1743671350226,1e-06,83734.0,83733.0,0.56727245]
[1743671350836,1e-06,83734.0,83733.0,0.5866784]
[1743671351833,1e-06,83734.0,83733.0,0.4511984]
[1743671352032,1e-06,83734.0,83733.0,0.5865984]
[1743671357967,1e-06,83734.0,83733.0,0.59032976]
[1743671359620,1e-06,83734.0,83733.0,0.5865984]
[1743671359803,1e-06,83734.0,83733.0,0.5368984]
[1743671359976,1e-06,83734.0,83733.0,0.38695755]
[1743671360172,1e-06,83734.0,83733.0,0.27020195]
[1743671360601,0.01215785,83734.0,83733.0,0.27020195]
[1743671360983,0.00181591,83734.0,83733.0,0.27020195]
[1743671361179,0.238841,83738.0,83735.0,0.238847]
[1743671361366,0.01025577,83737.0,83735.0,0.238847]
[1743671361565,0.238851,83734.0,83733.0,0.01940595]
[1743671361765,0.26105162,83734.0,83733.0,0.01940595]
[1743671362243,0.238856,83733.0,83730.0,0.238862]
[1743671362736,0.01027876,83732.0,83731.0,0.23886]
[1743671363284,0.238853,83734.0,83733.0,0.000337]
[1743671363713,0.2390215,83734.0,83733.0,0.000337]
[1743671364245,0.23917627,83734.0,83733.0,0.000337]
[1743671364660,0.23917627,83734.0,83733.0,0.00406887]
[1743671364860,0.23917627,83734.0,83733.0,0.0234746]
[1743671366270,0.00032327,83734.0,83733.0,0.0234746]
[1743671366657,0.00032327,83734.0,83733.0,0.2623286]
[1743671368042,0.25111627,83734.0,83733.0,0.0234746]
[1743671368594,0.26139503,83734.0,83733.0,0.01974273]
[1743671375735,0.26134938,83734.0,83733.0,0.01974273]
[1743671375920,0.26129799,83734.0,83733.0,0.01974273]
[1743671376351,0.26129799,83734.0,83733.0,0.00780074]
[1743671379548,0.60129799,83734.0,83733.0,0.00780074]
[1743671379763,0.60129799,83734.0,83733.0,7.4e-07]
[1743671379764,0.9650591,83734.0,83733.0,7.4e-07]
[1743671379957,0.84831509,83734.0,83733.0,7.4e-07]
[1743671380161,0.81055359,83734.0,83733.0,7.4e-07]
[1743671380368,0.578874,83726.0,83725.0,0.01194199]
[1743671380527,0.590817,83726.0,83725.0,0.01194199]
[1743671381423,0.590824,83724.0,83723.0,0.000337]
[1743671381574,0.59087031,83724.0,83723.0,0.000337]
[1743671383675,0.76682283,83724.0,83723.0,0.000337]
[1743671384595,0.76677652,83724.0,83723.0,0.000337]
[1743671384815,0.92954692,83724.0,83723.0,1e-06]
[1743671385812,0.85023802,83724.0,83723.0,1e-06]
[1743671387430,0.6755875,83723.0,83722.0,1e-06]
[1743671387635,0.7923431,83723.0,83722.0,1e-06]
[1743671388600,0.7923431,83723.0,83697.0,0.10691224]
[1743671388601,0.689253,83714.0,83697.0,0.10691224]
[1743671388809,0.250901,83698.0,83697.0,0.10691224]
[1743671389013,0.299801,83698.0,83697.0,0.10691224]
[1743671390458,0.639801,83698.0,83697.0,0.10691224]
[1743671391247,0.238997,83683.0,83680.0,0.239005]
[1743671391630,0.238996,83684.0,83681.0,0.239001]
[1743671392009,0.011949,83683.0,83679.0,0.239008]
[1743671392210,0.250958,83679.0,83678.0,0.15331224]
[1743671392822,0.250958,83679.0,83678.0,0.10691224]
[1743671393869,0.011947,83697.0,83686.0,0.011949]
[1743671394069,0.011948,83691.0,83684.0,0.238991]
[1743671394281,0.238985,83687.0,83683.0,0.011949]
[1743671394487,0.250958,83679.0,83678.0,0.10691224]
[1743671396015,0.250958,83679.0,83674.0,0.250973]
[1743671396016,0.239014,83677.0,83674.0,0.250973]
[1743671396235,0.239011,83678.0,83675.0,0.239019]
[1743671396695,0.239011,83678.0,83674.0,0.250973]
[1743671396873,0.239011,83678.0,83675.0,0.239019]
[1743671398066,0.239014,83677.0,83675.0,0.000337]
[1743671398742,0.00822161,83676.0,83675.0,0.000337]
[1743671399910,0.25918861,83676.0,83675.0,0.000337]
[1743671401085,0.59918861,83676.0,83675.0,0.000337]
[1743671409086,0.71594421,83676.0,83675.0,0.000337]
[1743671409259,0.79930571,83676.0,83675.0,0.000337]
[1743671409686,0.84710571,83676.0,83675.0,0.000337]
[1743671413449,0.80934421,83676.0,83675.0,0.000337]
[1743671415947,0.590979,83672.0,83671.0,0.004]
[1743671416186,0.71564825,83672.0,83671.0,0.004]
[1743671417685,0.71564825,83672.0,83646.0,0.0463]
[1743671417686,0.011954,83651.0,83646.0,0.0463]
[1743671417890,0.25343475,83651.0,83646.0,0.0463]
[1743671418089,0.25875256,83651.0,83646.0,0.0463]
[1743671418307,0.27076826,83651.0,83646.0,0.0463]
[1743671418484,0.27076826,83651.0,83650.0,0.00780937]
[1743671419459,0.27076826,83651.0,83650.0,0.0003374]
[1743671420702,0.72752386,83651.0,83650.0,0.0003374]
[1743671420909,0.79244149,83651.0,83650.0,0.0003374]
[1743671421104,0.83020299,83651.0,83650.0,0.0003374]
[1743671421291,0.72752386,83651.0,83650.0,0.0003374]
[1743671421604,0.76528536,83651.0,83650.0,0.0003374]
[1743671422162,0.72752386,83651.0,83650.0,0.0003374]
[1743671422529,0.86276386,83651.0,83650.0,0.0003374]
[1743671422954,0.90052536,83651.0,83650.0,0.0003374]
[1743671423703,0.98210166,83651.0,83650.0,0.0003374]
[1743671423899,2.01486166,83651.0,83650.0,0.0003374]
[1743671428886,1.97710016,83651.0,83650.0,0.0003374]
[1743671429090,1.90467921,83651.0,83650.0,0.0003374]
[1743671429292,1.76943921,83651.0,83650.0,0.0003374]
[1743671429491,1.90471921,83651.0,83650.0,0.0003374]
[1743671431550,1.77534552,83651.0,83650.0,0.0003374]
[1743671431750,1.91062552,83651.0,83650.0,0.0003374]
[1743671434370,1.77534552,83651.0,83650.0,0.0003374]
[1743671434578,1.91062552,83651.0,83650.0,0.0003374]
[1743671438643,1.91540952,83651.0,83650.0,0.0003374]
[1743671445124,2.03215353,83651.0,83650.0,0.0003374]
[1743671445287,0.637245,83650.0,83649.0,4e-07]
[1743671445486,0.7540006,83650.0,83649.0,4e-07]
[1743671445743,0.76767276,83650.0,83649.0,4e-07]
[1743671446855,0.72147276,83650.0,83649.0,4e-07]
[1743671447921,0.85675276,83650.0,83649.0,4e-07]
[1743671448955,0.97349677,83650.0,83649.0,4e-07]
[1743671452522,1.01078263,83650.0,83649.0,4e-07]
[1743671453796,1.01078263,83650.0,83649.0,4e-07]
[1743671459363,1.04854413,83650.0,83649.0,4e-07]
[1743671460109,0.93180012,83650.0,83649.0,4e-07]
[1743671460464,0.94667837,83650.0,83649.0,4e-07]
[1743671462417,0.94867837,83650.0,83649.0,4e-07]
[1743671462806,0.95067837,83650.0,83649.0,4e-07]
[1743671463374,0.91291687,83650.0,83649.0,4e-07]
[1743671463501,1.02966088,83650.0,83649.0,4e-07]
[1743671463890,1.01512003,83650.0,83649.0,4e-07]
[1743671464089,0.89837602,83650.0,83649.0,4e-07]
[1743671464504,0.76309602,83650.0,83649.0,4e-07]
[1743671464728,0.89837602,83650.0,83649.0,4e-07]
[1743671468092,0.42309602,83650.0,83649.0,4e-07]
[1743671468294,0.89837602,83650.0,83649.0,4e-07]
[1743671468468,0.86109016,83650.0,83649.0,4e-07]
[1743671468669,0.52109016,83650.0,83649.0,4e-07]
[1743671468895,0.51909016,83650.0,83649.0,4e-07]
[1743671469180,0.97383417,83650.0,83649.0,4e-07]
[1743671469724,0.85709016,83650.0,83649.0,4e-07]
[1743671470342,0.8943993,83650.0,83649.0,4e-07]
[1743671472051,0.7591193,83650.0,83649.0,4e-07]
[1743671472228,0.8943993,83650.0,83649.0,4e-07]
[1743671475098,0.85709016,83650.0,83649.0,4e-07]
[1743671477041,0.8944112,83650.0,83649.0,4e-07]
[1743671479010,0.85709016,83650.0,83649.0,4e-07]
[1743671479350,1.04892904,83650.0,83649.0,4e-07]
[1743671480319,1.06446989,83650.0,83649.0,4e-07]
[1743671480739,0.591078,83639.0,83638.0,4.6e-07]
[1743671480982,0.74516697,83639.0,83638.0,4.6e-07]
[1743671481295,0.75883081,83639.0,83638.0,4.6e-07]
[1743671482750,0.79659231,83639.0,83638.0,4.6e-07]
[1743671483761,0.59115,83615.0,83612.0,0.10691224]
[1743671483967,1.9378523,83615.0,83612.0,0.10691224]
[1743671484162,1.7410656,83615.0,83612.0,0.10691224]
[1743671484348,1.89000944,83615.0,83612.0,0.10691224]
[1743671484548,1.92590544,83615.0,83612.0,0.10691224]
[1743671484950,1.93470664,83615.0,83612.0,0.10691224]
[1743671485607,0.591153,83614.0,83607.0,0.049937]
[1743671485753,0.7079086,83614.0,83607.0,0.049937]
[1743671486155,0.72157244,83614.0,83607.0,0.049937]
[1743671487028,0.73342059,83614.0,83607.0,0.049937]
[1743671488745,0.7581309,83614.0,83607.0,0.049937]
[1743671490522,0.59116,83612.0,83607.0,0.000337]
[1743671490735,0.7079156,83612.0,83607.0,0.000337]
[1743671490948,0.7212049,83612.0,83607.0,0.000337]
[1743671493135,0.591177,83606.0,83605.0,0.010674]
[1743671493332,0.7079326,83606.0,83605.0,0.010674]
[1743671493755,1.7546619,83606.0,83605.0,0.010674]
[1743671495406,1.8899819,83606.0,83605.0,0.010674]
[1743671497908,1.6379063,83606.0,83605.0,0.058674]
[1743671500302,1.6379063,83606.0,83605.0,0.038674]
[1743671509140,1.6379063,83606.0,83605.0,0.0388426]
[1743671512875,0.6044663,83606.0,83605.0,0.0388426]
[1743671514936,0.6044663,83606.0,83605.0,0.0001686]
[1743671515134,0.7212219,83606.0,83605.0,0.0001686]
[1743671518352,0.75857645,83606.0,83605.0,0.0001686]
[1743671520475,0.75891365,83606.0,83605.0,0.0001686]
[1743671521062,0.7215591,83606.0,83605.0,0.0001686]
[1743671521261,0.6048035,83606.0,83605.0,0.0001686]
[1743671521464,0.7401235,83606.0,83605.0,0.0001686]
[1743671526140,0.6048035,83606.0,83605.0,0.0455686]
[1743671527206,0.6048035,83606.0,83605.0,0.0937686]
[1743671527973,0.6048035,83606.0,83605.0,0.10124498]
[1743671530851,0.0136265,83606.0,83605.0,0.35242598]
[1743671531097,0.2648035,83606.0,83605.0,0.10124498]
[1743671531301,0.0136265,83606.0,83605.0,0.10124498]
[1743671531487,0.0136265,83606.0,83605.0,0.34046498]
[1743671531934,0.0136265,83606.0,83605.0,0.10124498]
[1743671532349,0.0136265,83606.0,83605.0,0.34046498]
[1743671532550,0.0136265,83606.0,83605.0,0.10124498]
[1743671532817,0.0136265,83606.0,83605.0,0.34046498]
[1743671533271,0.0136265,83606.0,83605.0,0.35242577]
[1743671534702,0.0136265,83606.0,83605.0,0.34046498]
[1743671535981,0.0136265,83606.0,83605.0,0.35242598]
[1743671537383,0.0136265,83606.0,83605.0,0.46918158]
[1743671537588,0.0003372,83606.0,83605.0,0.46918158]
[1743671540840,0.01068185,83606.0,83605.0,0.46918158]
[1743671541038,0.0003372,83606.0,83605.0,0.46918158]
[1743671541270,0.01068185,83606.0,83605.0,0.46918158]
[1743671541742,0.0003372,83606.0,83605.0,0.46918158]
[1743671543396,0.01068185,83606.0,83605.0,0.46918158]
[1743671544764,0.0003372,83606.0,83605.0,0.46918158]
[1743671546487,0.01068185,83606.0,83605.0,0.46918158]
[1743671546693,0.0003372,83606.0,83605.0,0.46918158]
[1743671546886,0.01068185,83606.0,83605.0,0.46918158]
[1743671547086,0.0003372,83606.0,83605.0,0.46918158]
[1743671547722,0.01076535,83606.0,83605.0,0.46918158]
[1743671547926,0.0003372,83606.0,83605.0,0.46918158]
[1743671548606,0.0003372,83606.0,83605.0,0.48372243]
[1743671549455,0.0003372,83606.0,83605.0,0.49568255]
[1743671549634,0.0003372,83613.0,83612.0,0.34946]
[1743671549875,0.0003372,83613.0,83612.0,0.4662156]
[1743671551190,0.0003372,83613.0,83612.0,0.35693638]
[1743671551408,0.0003372,83613.0,83612.0,0.10577638]
[1743671551616,0.01076535,83613.0,83612.0,0.25301638]
[1743671551942,0.01076535,83613.0,83612.0,0.49221638]
[1743671553767,0.01076535,83613.0,83612.0,0.50417495]
[1743671554327,0.01076535,83613.0,83612.0,0.36889495]
[1743671555146,0.01076535,83613.0,83612.0,0.35693638]
[1743671555358,0.01076535,83613.0,83612.0,0.10577638]
[1743671555527,0.26192135,83613.0,83612.0,0.05667638]
[1743671559725,0.26192135,83613.0,83612.0,0.00747638]
[1743671562428,0.01076535,83613.0,83612.0,0.00747638]
[1743671563902,0.24996235,83613.0,83612.0,0.00747638]
[1743671564117,0.24996235,83613.0,83612.0,0.01943666]
[1743671564498,0.01076535,83613.0,83612.0,0.01943666]
[1743671564702,0.24996235,83613.0,83612.0,0.01943666]
[1743671566618,0.01076535,83613.0,83612.0,0.01943666]
[1743671569439,0.24996235,83613.0,83612.0,0.01943666]
[1743671571585,0.26192135,83613.0,83612.0,0.01943666]
[1743671572554,0.01076535,83613.0,83612.0,0.01943666]
[1743671572875,0.24996235,83613.0,83612.0,0.01943666]
[1743671575337,0.26192135,83613.0,83612.0,0.01943666]
[1743671575837,0.24996235,83613.0,83612.0,0.01943666]
[1743671580124,0.26192135,83613.0,83612.0,0.01943666]
[1743671581671,0.24996235,83613.0,83612.0,0.01943666]
[1743671582114,0.24996235,83613.0,83612.0,0.27059666]
[1743671582115,0.01076535,83613.0,83612.0,0.27059666]
[1743671582312,0.0003372,83613.0,83612.0,0.43605226]
[1743671582524,0.0003372,83613.0,83612.0,0.48195226]
[1743671583359,0.0003372,83613.0,83612.0,0.49649311]
[1743671583965,0.0003372,83613.0,83612.0,0.50022988]
[1743671585468,0.0003372,83613.0,83612.0,0.63546988]
[1743671586473,0.0003372,83613.0,83612.0,0.63173311]
[1743671587442,0.0003372,83613.0,83612.0,0.61719226]
[1743671590088,0.0003372,83613.0,83612.0,0.63173311]
[1743671595939,0.0003372,83613.0,83612.0,0.63169311]
[1743671600530,0.0003372,83613.0,83612.0,0.61715226]
[1743671603537,0.0003372,83613.0,83612.0,0.48195226]
[1743671603731,0.0003372,83613.0,83612.0,0.61715226]
[1743671607876,0.0003372,83613.0,83612.0,0.57125226]
[1743671608729,0.0003372,83613.0,83612.0,0.13619226]
[1743671608934,0.0003372,83613.0,83612.0,0.27139226]
[1743671609106,0.0003372,83613.0,83612.0,0.37539226]
[1743671609335,0.0003372,83613.0,83612.0,0.51059226]
[1743671609565,0.01066152,83613.0,83612.0,0.51059226]
[1743671609699,0.0003372,83613.0,83612.0,0.51059226]
[1743671609926,0.01066152,83613.0,83612.0,0.51059226]
[1743671610372,0.01066152,83613.0,83612.0,0.52255226]
[1743671610621,0.01066152,83613.0,83612.0,0.51059226]
[1743671611266,0.01066152,83613.0,83612.0,0.52255226]
[1743671614051,0.01066152,83613.0,83612.0,0.27139226]
[1743671614811,0.01066152,83613.0,83612.0,0.51059226]
[1743671615670,0.23374752,83615.0,83612.0,0.51059226]
[1743671615932,0.23374752,83615.0,83613.0,0.1167556]
[1743671616438,0.23374752,83615.0,83613.0,0.13619226]
[1743671617605,0.16820281,83640.0,83613.0,0.13619226]
[1743671617809,0.16820281,83640.0,83619.0,0.239178]
[1743671617810,0.239172,83622.0,83619.0,0.239178]
[1743671618014,0.239166,83624.0,83621.0,0.239168]
[1743671618223,0.239166,83624.0,83620.0,0.251135]
[1743671618601,0.239166,83624.0,83618.0,0.011959]
[1743671618785,0.239173,83622.0,83619.0,0.239174]
[1743671618957,0.239173,83622.0,83621.0,0.00747638]
[1743671623250,0.24773942,83622.0,83621.0,0.00747638]
[1743671625109,0.25969742,83622.0,83621.0,0.00747638]
[1743671625315,0.26003462,83622.0,83621.0,0.00747638]
[1743671630609,0.00890362,83622.0,83621.0,0.00747638]
[1743671630778,0.24807462,83622.0,83621.0,0.00747638]
[1743671631596,0.24807462,83622.0,83621.0,0.01943564]
[1743671632026,0.26003262,83622.0,83621.0,0.01943564]
[1743671636051,0.00890362,83622.0,83621.0,0.48202324]
[1743671636252,0.0003372,83622.0,83621.0,0.49656409]
[1743671636470,0.0003374,83650.0,83649.0,0.251048]
[1743671636680,0.0003374,83650.0,83649.0,0.5499036]
[1743671637624,0.0003374,83650.0,83649.0,0.56933924]
[1743671638840,0.0122914,83650.0,83649.0,0.01943564]
[1743671639072,0.25997864,83650.0,83649.0,0.01943564]